[Event "*** Titled Tuesday Blitz"]
[Site "Chess.com"]
[Date "2021.04.27"]
[Round "7"]
[White "RiskyDecision"]
[Black "OlegKrivonosov"]
[Result "0-1"]
[WhiteElo "2536"]
[BlackElo "2675"]
[TimeControl "180+1"]
[EndTime "11:18:13 PDT"]
[Termination "OlegKrivonosov won by resignation"]

1. d4 {[%clk 0:03:00.9]} 1... d5 {[%clk 0:02:59.4]} 2. c4 {[%clk 0:03:00.3]}
2... e6 {[%clk 0:02:59.4]} 3. Nf3 {[%clk 0:03:00]} 3... Nf6 {[%clk 0:02:58.8]}
4. g3 {[%clk 0:03:00.5]} 4... Be7 {[%clk 0:02:58.4]} 5. Bg2 {[%clk 0:03:00.8]}
5... O-O {[%clk 0:02:58.5]} 6. O-O {[%clk 0:03:01.4]} 6... Nbd7 {[%clk
0:02:57.7]} 7. Qc2 {[%clk 0:03:00.8]} 7... c6 {[%clk 0:02:57.6]} 8. b3 {[%clk
0:03:00.6]} 8... b6 {[%clk 0:02:57]} 9. Rd1 {[%clk 0:03:00.5]} 9... Ba6 {[%clk
0:02:52.8]} 10. Bb2 {[%clk 0:02:52.4]} 10... Rc8 {[%clk 0:02:50.3]} 11. Nbd2
{[%clk 0:02:48.2]} 11... c5 {[%clk 0:02:49.5]} 12. e4 {[%clk 0:02:39.3]} 12...
dxc4 {[%clk 0:02:43.6]} 13. bxc4 {[%clk 0:02:33.9]} 13... cxd4 {[%clk
0:02:41.5]} 14. e5 {[%clk 0:02:25.7]} 14... Ng4 {[%clk 0:02:36.6]} 15. Qe4
{[%clk 0:02:24]} 15... h5 {[%clk 0:02:36.9]} 16. Bxd4 {[%clk 0:02:18.4]} 16...
Qc7 {[%clk 0:02:33.5]} 17. Rac1 {[%clk 0:02:13.3]} 17... Bb7 {[%clk 0:02:29.1]}
18. Qe2 {[%clk 0:02:13.3]} 18... Bc5 {[%clk 0:02:22]} 19. Nb3 {[%clk 0:02:07.6]}
19... Bxf3 {[%clk 0:02:13.4]} 20. Bxf3 {[%clk 0:02:07]} 20... Ndxe5 {[%clk
0:02:05.9]} 21. Bxe5 {[%clk 0:01:51.6]} 21... Nxe5 {[%clk 0:01:59.6]} 22. Bxh5
{[%clk 0:01:50.1]} 22... Rcd8 {[%clk 0:01:57.6]} 23. Bf3 {[%clk 0:01:45.4]}
23... Nxf3+ {[%clk 0:01:55.6]} 24. Qxf3 {[%clk 0:01:45]} 24... a5 {[%clk
0:01:51.4]} 25. Kg2 {[%clk 0:01:40]} 25... a4 {[%clk 0:01:48.9]} 26. Nxc5 {[%clk
0:01:33.7]} 26... Qxc5 {[%clk 0:01:47.9]} 27. Qe2 {[%clk 0:01:15.1]} 27... Rc8
{[%clk 0:01:40.8]} 28. h4 {[%clk 0:01:08.9]} 28... Rfd8 {[%clk 0:01:38.4]} 29.
h5 {[%clk 0:00:56]} 29... Rxd1 {[%clk 0:01:34.7]} 30. Qxd1 {[%clk 0:00:48.3]}
30... b5 {[%clk 0:01:25.9]} 31. h6 {[%clk 0:00:37]} 31... gxh6 {[%clk
0:01:19.9]} 32. Qg4+ {[%clk 0:00:36.9]} 32... Kf8 {[%clk 0:01:12.2]} 33. Qf4
{[%clk 0:00:31.1]} 33... Kg7 {[%clk 0:01:04.6]} 34. Rh1 {[%clk 0:00:27.4]} 34...
Qg5 {[%clk 0:01:01.4]} 35. Qxg5+ {[%clk 0:00:09.4]} 35... hxg5 {[%clk
0:01:00.5]} 36. cxb5 {[%clk 0:00:10.1]} 36... Rc2 {[%clk 0:00:42.8]} 37. Rb1
{[%clk 0:00:09.9]} 37... a3 {[%clk 0:00:42.9]} 38. Rb3 {[%clk 0:00:07.6]} 38...
Rb2 {[%clk 0:00:42.9]} 39. Rxa3 {[%clk 0:00:05.8]} 39... Rxb5 {[%clk 0:00:43.3]}
40. Kf3 {[%clk 0:00:04.1]} 40... Kg6 {[%clk 0:00:42.5]} 41. Rb3 {[%clk
0:00:04.3]} 41... Ra5 {[%clk 0:00:41.6]} 42. a3 {[%clk 0:00:04.9]} 42... f5
{[%clk 0:00:38.4]} 43. Ke3 {[%clk 0:00:04.5]} 43... Ra4 {[%clk 0:00:37]} 44. f3
{[%clk 0:00:04.7]} 44... Kf6 {[%clk 0:00:33.5]} 45. Rc3 {[%clk 0:00:05]} 45...
Ke5 {[%clk 0:00:30]} 46. Rc5+ {[%clk 0:00:04.2]} 46... Kd6 {[%clk 0:00:29.4]}
47. Rc3 {[%clk 0:00:05.1]} 47... Kd5 {[%clk 0:00:29.4]} 48. Rb3 {[%clk
0:00:04.1]} 48... Ra5 {[%clk 0:00:25.9]} 49. Rc3 {[%clk 0:00:02.5]} 49... e5
{[%clk 0:00:22.8]} 50. Rb3 {[%clk 0:00:02.5]} 50... f4+ {[%clk 0:00:20.2]} 51.
gxf4 {[%clk 0:00:02.5]} 51... gxf4+ {[%clk 0:00:18.9]} 52. Ke2 {[%clk
0:00:03.4]} 52... Ra4 {[%clk 0:00:15.9]} 53. Rd3+ {[%clk 0:00:03.2]} 53... Ke6
{[%clk 0:00:15]} 54. Rc3 {[%clk 0:00:03.3]} 54... Kf5 {[%clk 0:00:14.9]} 55. Rb3
{[%clk 0:00:03.6]} 55... Kg5 {[%clk 0:00:11.7]} 56. Rc3 {[%clk 0:00:04]} 56...
Kh4 {[%clk 0:00:10.4]} 57. Rc5 {[%clk 0:00:03.9]} 57... Rxa3 {[%clk 0:00:05.6]}
58. Rxe5 {[%clk 0:00:04.2]} 58... Ra2+ {[%clk 0:00:05.6]} 59. Kf1 {[%clk
0:00:02.9]} 59... Kg3 {[%clk 0:00:05.7]} 60. Rb5 {[%clk 0:00:02.5]} 60... Rf2+
{[%clk 0:00:04]} 61. Kg1 {[%clk 0:00:02.3]} 61... Rxf3 {[%clk 0:00:04.4]} 62.
Rb1 {[%clk 0:00:02.5]} 62... Rd3 {[%clk 0:00:03.8]} 63. Rc1 {[%clk 0:00:02.8]}
63... Rd2 {[%clk 0:00:04.1]} 64. Rb1 {[%clk 0:00:02.9]} 64... f3 {[%clk
0:00:04.5]} 65. Rc1 {[%clk 0:00:02.3]} 65... Rg2+ {[%clk 0:00:04.8]} 66. Kh1
{[%clk 0:00:02.2]} 66... Rh2+ {[%clk 0:00:05.3]} 67. Kg1 {[%clk 0:00:02.1]}
67... f2+ {[%clk 0:00:05.7]} 68. Kf1 {[%clk 0:00:02.5]} 68... Rh1+ {[%clk
0:00:05.6]} 0-1

[Event "*** Titled Tuesday Blitz"]
[Site "Chess.com"]
[Date "2021.04.27"]
[Round "7"]
[White "tdf98pantani"]
[Black "juancruzarias"]
[Result "1/2-1/2"]
[WhiteElo "2709"]
[BlackElo "2589"]
[TimeControl "180+1"]
[EndTime "11:18:16 PDT"]
[Termination "Game drawn - insufficient material"]

1. e4 {[%clk 0:03:00.9]} 1... c6 {[%clk 0:02:54.2]} 2. d4 {[%clk 0:03:00.1]}
2... d5 {[%clk 0:02:54.6]} 3. Nc3 {[%clk 0:02:59.6]} 3... dxe4 {[%clk 0:02:54]}
4. Nxe4 {[%clk 0:02:59.7]} 4... Bf5 {[%clk 0:02:54.5]} 5. Ng3 {[%clk 0:02:59.8]}
5... Bg6 {[%clk 0:02:54.6]} 6. h4 {[%clk 0:03:00.1]} 6... h6 {[%clk 0:02:55.1]}
7. N1e2 {[%clk 0:02:58.8]} 7... e6 {[%clk 0:02:47.8]} 8. Nf4 {[%clk 0:02:58.9]}
8... Bh7 {[%clk 0:02:47.3]} 9. c3 {[%clk 0:02:53.8]} 9... Nd7 {[%clk 0:02:34.2]}
10. Bd3 {[%clk 0:02:53.6]} 10... Bxd3 {[%clk 0:02:32.4]} 11. Qxd3 {[%clk
0:02:52.2]} 11... Ngf6 {[%clk 0:02:23.7]} 12. Bd2 {[%clk 0:02:51.4]} 12... Bd6
{[%clk 0:02:22.6]} 13. Ngh5 {[%clk 0:02:47.2]} 13... Nxh5 {[%clk 0:02:03.5]} 14.
Nxh5 {[%clk 0:02:46.4]} 14... g6 {[%clk 0:02:01]} 15. Ng3 {[%clk 0:02:41.9]}
15... Qb6 {[%clk 0:01:52.5]} 16. Ne4 {[%clk 0:02:41.1]} 16... Be7 {[%clk
0:01:49.8]} 17. O-O-O {[%clk 0:02:38.4]} 17... O-O-O {[%clk 0:01:29.8]} 18. Be3
{[%clk 0:02:35.8]} 18... Qa5 {[%clk 0:01:25.1]} 19. Kb1 {[%clk 0:02:35.7]} 19...
Nf6 {[%clk 0:01:10.5]} 20. Nxf6 {[%clk 0:02:27.2]} 20... Bxf6 {[%clk 0:01:11.4]}
21. g4 {[%clk 0:02:12.8]} 21... h5 {[%clk 0:01:10.8]} 22. g5 {[%clk 0:02:03.3]}
22... Be7 {[%clk 0:01:05.6]} 23. Rh3 {[%clk 0:02:03.4]} 23... Qf5 {[%clk
0:01:05.5]} 24. Bc1 {[%clk 0:02:02.1]} 24... Qxd3+ {[%clk 0:01:04.8]} 25. Rdxd3
{[%clk 0:02:01]} 25... Rd5 {[%clk 0:01:05.3]} 26. Rhf3 {[%clk 0:02:00.2]} 26...
Rf5 {[%clk 0:01:03.2]} 27. Rxf5 {[%clk 0:01:52.8]} 27... gxf5 {[%clk 0:01:03.7]}
28. c4 {[%clk 0:01:41.5]} 28... Rd8 {[%clk 0:00:57]} 29. Kc2 {[%clk 0:01:36.8]}
29... Kc7 {[%clk 0:00:51.6]} 30. Be3 {[%clk 0:01:34.7]} 30... a6 {[%clk
0:00:46.3]} 31. Bf4+ {[%clk 0:01:25]} 31... Bd6 {[%clk 0:00:45.9]} 32. Bxd6+
{[%clk 0:01:22.3]} 32... Kxd6 {[%clk 0:00:46.2]} 33. Kc3 {[%clk 0:01:21.9]}
33... b5 {[%clk 0:00:45.7]} 34. b3 {[%clk 0:01:14.1]} 34... a5 {[%clk
0:00:41.2]} 35. Re3 {[%clk 0:01:13.7]} 35... Rb8 {[%clk 0:00:20.6]} 36. Re5
{[%clk 0:01:11.6]} 36... Rb7 {[%clk 0:00:21.1]} 37. Rc5 {[%clk 0:01:09]} 37...
Rb8 {[%clk 0:00:20.5]} 38. f4 {[%clk 0:00:41.7]} 38... Rb7 {[%clk 0:00:20.4]}
39. a3 {[%clk 0:00:33.8]} 39... Rb8 {[%clk 0:00:20.7]} 40. a4 {[%clk 0:00:31.7]}
40... b4+ {[%clk 0:00:19.9]} 41. Kd3 {[%clk 0:00:31.2]} 41... Ra8 {[%clk
0:00:20.8]} 42. Re5 {[%clk 0:00:29.8]} 42... Ra7 {[%clk 0:00:21]} 43. d5 {[%clk
0:00:17.1]} 43... cxd5 {[%clk 0:00:16.5]} 44. cxd5 {[%clk 0:00:17.1]} 44... Rc7
{[%clk 0:00:17.4]} 45. dxe6 {[%clk 0:00:17.2]} 45... Rc3+ {[%clk 0:00:18]} 46.
Kd4 {[%clk 0:00:16.8]} 46... fxe6 {[%clk 0:00:18.7]} 47. Rxa5 {[%clk 0:00:16.9]}
47... Rxb3 {[%clk 0:00:19.3]} 48. Ra6+ {[%clk 0:00:17.4]} 48... Kd7 {[%clk
0:00:18.3]} 49. g6 {[%clk 0:00:14.8]} 49... Rg3 {[%clk 0:00:15.5]} 50. g7 {[%clk
0:00:14.8]} 50... b3 {[%clk 0:00:15.7]} 51. Rb6 {[%clk 0:00:10.8]} 51... Kc7
{[%clk 0:00:12.5]} 52. a5 {[%clk 0:00:09.1]} 52... Rxg7 {[%clk 0:00:08.5]} 53.
Rxb3 {[%clk 0:00:08.9]} 53... Rg4 {[%clk 0:00:04]} 54. Ke5 {[%clk 0:00:09]}
54... Rxh4 {[%clk 0:00:04.4]} 55. a6 {[%clk 0:00:07.1]} 55... Rh1 {[%clk
0:00:05]} 56. Ra3 {[%clk 0:00:06.2]} 56... Kb8 {[%clk 0:00:05.4]} 57. a7+ {[%clk
0:00:05.5]} 57... Ka8 {[%clk 0:00:05.9]} 58. Kxe6 {[%clk 0:00:05.5]} 58... h4
{[%clk 0:00:06.6]} 59. Kxf5 {[%clk 0:00:05.9]} 59... h3 {[%clk 0:00:06.6]} 60.
Kf6 {[%clk 0:00:02.8]} 60... Rf1 {[%clk 0:00:04.7]} 61. Rxh3 {[%clk 0:00:03]}
61... Rxf4+ {[%clk 0:00:04.4]} 62. Ke5 {[%clk 0:00:03.9]} 62... Rb4 {[%clk
0:00:05]} 63. Kd6 {[%clk 0:00:04]} 63... Rb6+ {[%clk 0:00:05.2]} 64. Kc7 {[%clk
0:00:03.4]} 64... Kxa7 {[%clk 0:00:05.5]} 65. Ra3+ {[%clk 0:00:03.3]} 65... Ra6
{[%clk 0:00:05.6]} 66. Rxa6+ {[%clk 0:00:03.7]} 66... Kxa6 {[%clk 0:00:05.8]}
1/2-1/2

[Event "*** Titled Tuesday Blitz"]
[Site "Chess.com"]
[Date "2021.04.27"]
[Round "7"]
[White "Grandmaster1369"]
[Black "JiiHart"]
[Result "0-1"]
[WhiteElo "2545"]
[BlackElo "2058"]
[TimeControl "180+1"]
[EndTime "11:18:23 PDT"]
[Termination "JiiHart won by checkmate"]

1. e4 {[%clk 0:02:53.7]} 1... c5 {[%clk 0:02:59.8]} 2. Nc3 {[%clk 0:02:52.6]}
2... Nc6 {[%clk 0:02:59.6]} 3. f4 {[%clk 0:02:53.3]} 3... e6 {[%clk 0:02:58.9]}
4. Nf3 {[%clk 0:02:52.9]} 4... d5 {[%clk 0:02:59]} 5. exd5 {[%clk 0:02:52.7]}
5... exd5 {[%clk 0:02:59.2]} 6. Bb5 {[%clk 0:02:53.6]} 6... Nf6 {[%clk
0:02:58.8]} 7. O-O {[%clk 0:02:53.7]} 7... Be7 {[%clk 0:02:58.7]} 8. d4 {[%clk
0:02:54.4]} 8... O-O {[%clk 0:02:58.1]} 9. Kh1 {[%clk 0:02:51.3]} 9... Bg4
{[%clk 0:02:48.5]} 10. dxc5 {[%clk 0:02:45.7]} 10... Bxc5 {[%clk 0:02:43.6]} 11.
Bxc6 {[%clk 0:02:45.4]} 11... bxc6 {[%clk 0:02:43.3]} 12. h3 {[%clk 0:02:46]}
12... Bf5 {[%clk 0:02:26]} 13. Nd4 {[%clk 0:02:45.4]} 13... Be4 {[%clk
0:02:25.8]} 14. Nxe4 {[%clk 0:02:43.9]} 14... Nxe4 {[%clk 0:02:25.5]} 15. Rf3
{[%clk 0:02:30]} 15... Qb6 {[%clk 0:02:14]} 16. Be3 {[%clk 0:02:28.9]} 16...
Qxb2 {[%clk 0:01:46.6]} 17. Rb1 {[%clk 0:02:20.2]} 17... Qxa2 {[%clk 0:01:44.3]}
18. Rb3 {[%clk 0:01:51.5]} 18... Rab8 {[%clk 0:01:37.3]} 19. Bg1 {[%clk
0:01:30.9]} 19... Rxb3 {[%clk 0:01:30.3]} 20. Rxb3 {[%clk 0:01:31.8]} 20... Qa6
{[%clk 0:01:03.8]} 21. Qg4 {[%clk 0:00:59.7]} 21... Qa1 {[%clk 0:00:43.9]} 22.
Kh2 {[%clk 0:00:12.4]} 22... Bxd4 {[%clk 0:00:42.4]} 23. Bxd4 {[%clk 0:00:09.3]}
23... Qxd4 {[%clk 0:00:42.3]} 24. Rd3 {[%clk 0:00:09.1]} 24... Qf6 {[%clk
0:00:37]} 25. f5 {[%clk 0:00:08.9]} 25... Re8 {[%clk 0:00:35.9]} 26. Re3 {[%clk
0:00:07.2]} 26... h6 {[%clk 0:00:35.9]} 27. c4 {[%clk 0:00:06.3]} 27... Qg5
{[%clk 0:00:35.5]} 28. Qe2 {[%clk 0:00:05.2]} 28... Qf4+ {[%clk 0:00:30.5]} 29.
Kg1 {[%clk 0:00:05.7]} 29... Qxf5 {[%clk 0:00:29.2]} 30. cxd5 {[%clk 0:00:05.9]}
30... cxd5 {[%clk 0:00:29.5]} 31. Rf3 {[%clk 0:00:05.5]} 31... Qe6 {[%clk
0:00:26.5]} 32. Qb5 {[%clk 0:00:06.2]} 32... a6 {[%clk 0:00:25.7]} 33. Qb7
{[%clk 0:00:04.7]} 33... Nd6 {[%clk 0:00:24.7]} 34. Qb2 {[%clk 0:00:03.5]} 34...
Qe1+ {[%clk 0:00:23]} 35. Rf1 {[%clk 0:00:04.1]} 35... Qe5 {[%clk 0:00:23]} 36.
Qf2 {[%clk 0:00:03.6]} 36... Qe3 {[%clk 0:00:22.9]} 37. Qxe3 {[%clk 0:00:03.7]}
37... Rxe3 {[%clk 0:00:23.2]} 38. Rd1 {[%clk 0:00:04.6]} 38... Re5 {[%clk
0:00:21.6]} 39. Ra1 {[%clk 0:00:04]} 39... d4 {[%clk 0:00:21.6]} 40. Rxa6 {[%clk
0:00:04.7]} 40... Rd5 {[%clk 0:00:21.7]} 41. Ra1 {[%clk 0:00:04.9]} 41... d3
{[%clk 0:00:21.9]} 42. Kf2 {[%clk 0:00:04.2]} 42... d2 {[%clk 0:00:22.1]} 43.
Rd1 {[%clk 0:00:05.1]} 43... Ne4+ {[%clk 0:00:21]} 44. Ke3 {[%clk 0:00:04.2]}
44... Nc3 {[%clk 0:00:20.9]} 45. Rxd2 {[%clk 0:00:04.2]} 45... Rxd2 {[%clk
0:00:21]} 46. Kxd2 {[%clk 0:00:05.1]} 46... Nd5 {[%clk 0:00:21.2]} 47. Ke2
{[%clk 0:00:04]} 47... f6 {[%clk 0:00:20.8]} 48. Kf3 {[%clk 0:00:04.9]} 48...
Kf7 {[%clk 0:00:21]} 49. Ke4 {[%clk 0:00:05.3]} 49... Ke6 {[%clk 0:00:21.3]} 50.
g4 {[%clk 0:00:06]} 50... Nc7 {[%clk 0:00:19.4]} 51. h4 {[%clk 0:00:05.3]} 51...
g6 {[%clk 0:00:19.7]} 52. Kf4 {[%clk 0:00:04.8]} 52... g5+ {[%clk 0:00:19]} 53.
hxg5 {[%clk 0:00:05]} 53... hxg5+ {[%clk 0:00:19.4]} 54. Ke4 {[%clk 0:00:05.6]}
54... Nd5 {[%clk 0:00:19.1]} 55. Kf3 {[%clk 0:00:05.5]} 55... Ke5 {[%clk
0:00:18.2]} 56. Kg3 {[%clk 0:00:05.7]} 56... Ke4 {[%clk 0:00:18.1]} 57. Kg2
{[%clk 0:00:04.9]} 57... Kf4 {[%clk 0:00:17.7]} 58. Kh3 {[%clk 0:00:05.3]} 58...
Ne3 {[%clk 0:00:17.9]} 59. Kh2 {[%clk 0:00:04.4]} 59... Kxg4 {[%clk 0:00:18]}
60. Kg1 {[%clk 0:00:04.6]} 60... Kg3 {[%clk 0:00:18.3]} 61. Kh1 {[%clk
0:00:04.4]} 61... f5 {[%clk 0:00:18.9]} 62. Kg1 {[%clk 0:00:05.3]} 62... f4
{[%clk 0:00:19.4]} 63. Kh1 {[%clk 0:00:05.8]} 63... f3 {[%clk 0:00:20]} 64. Kg1
{[%clk 0:00:06.4]} 64... g4 {[%clk 0:00:20.6]} 65. Kh1 {[%clk 0:00:07.3]} 65...
Kf4 {[%clk 0:00:21]} 66. Kg1 {[%clk 0:00:07.5]} 66... g3 {[%clk 0:00:21.5]} 67.
Kh1 {[%clk 0:00:07.8]} 67... Ng4 {[%clk 0:00:20.1]} 68. Kg1 {[%clk 0:00:08]}
68... Ke3 {[%clk 0:00:20.4]} 69. Kf1 {[%clk 0:00:08.2]} 69... Kd2 {[%clk
0:00:19.4]} 70. Kg1 {[%clk 0:00:07.9]} 70... Ke2 {[%clk 0:00:19.6]} 71. Kh1
{[%clk 0:00:07.9]} 71... Nf2+ {[%clk 0:00:18]} 72. Kg1 {[%clk 0:00:08.3]} 72...
Nh3+ {[%clk 0:00:18.1]} 73. Kh1 {[%clk 0:00:08.9]} 73... g2+ {[%clk 0:00:18.6]}
74. Kh2 {[%clk 0:00:08.7]} 74... g1=Q+ {[%clk 0:00:18.9]} 75. Kxh3 {[%clk
0:00:09.4]} 75... f2 {[%clk 0:00:19.2]} 76. Kh4 {[%clk 0:00:09.5]} 76... f1=R
{[%clk 0:00:18.5]} 77. Kh3 {[%clk 0:00:09.5]} 77... Rf2 {[%clk 0:00:18]} 78. Kh4
{[%clk 0:00:09.5]} 78... Rh2# {[%clk 0:00:18]} 0-1

[Event "*** Titled Tuesday Blitz"]
[Site "Chess.com"]
[Date "2021.04.27"]
[Round "7"]
[White "PotapovaM"]
[Black "sokidze"]
[Result "1/2-1/2"]
[WhiteElo "2576"]
[BlackElo "2695"]
[TimeControl "180+1"]
[EndTime "11:18:25 PDT"]
[Termination "Game drawn by repetition"]

1. d4 {[%clk 0:03:00.9]} 1... Nf6 {[%clk 0:02:59.8]} 2. c4 {[%clk 0:03:01.5]}
2... e6 {[%clk 0:03:00.2]} 3. Nc3 {[%clk 0:02:59.4]} 3... Bb4 {[%clk 0:02:59.6]}
4. e3 {[%clk 0:02:59.7]} 4... O-O {[%clk 0:02:59.1]} 5. Bd2 {[%clk 0:03:00]}
5... c5 {[%clk 0:02:52.7]} 6. a3 {[%clk 0:02:58.8]} 6... Bxc3 {[%clk 0:02:52.3]}
7. Bxc3 {[%clk 0:02:59.7]} 7... d6 {[%clk 0:02:50.6]} 8. Nf3 {[%clk 0:02:44.3]}
8... Ne4 {[%clk 0:02:49.6]} 9. Rc1 {[%clk 0:02:43.7]} 9... Nxc3 {[%clk
0:02:46.5]} 10. Rxc3 {[%clk 0:02:44.6]} 10... Qe7 {[%clk 0:02:47.1]} 11. Be2
{[%clk 0:02:42.9]} 11... b6 {[%clk 0:02:46.7]} 12. O-O {[%clk 0:02:37.1]} 12...
Bb7 {[%clk 0:02:46.4]} 13. b4 {[%clk 0:02:37.4]} 13... Nd7 {[%clk 0:02:42.3]}
14. Qb3 {[%clk 0:02:27.1]} 14... e5 {[%clk 0:02:24.8]} 15. d5 {[%clk 0:02:22.8]}
15... f5 {[%clk 0:02:17.2]} 16. Rcc1 {[%clk 0:02:13.8]} 16... Kh8 {[%clk
0:02:15.3]} 17. Nd2 {[%clk 0:02:10.1]} 17... Rae8 {[%clk 0:02:06.8]} 18. Rce1
{[%clk 0:02:08.1]} 18... e4 {[%clk 0:01:59.9]} 19. f4 {[%clk 0:01:51]} 19...
exf3 {[%clk 0:01:58.1]} 20. Bxf3 {[%clk 0:01:51.1]} 20... Ne5 {[%clk 0:01:56.9]}
21. Bd1 {[%clk 0:01:45.2]} 21... Bc8 {[%clk 0:01:45.4]} 22. Qb1 {[%clk
0:01:27.4]} 22... Bd7 {[%clk 0:01:36.3]} 23. h3 {[%clk 0:01:26.9]} 23... Qg5
{[%clk 0:01:29.2]} 24. Qb3 {[%clk 0:01:00.8]} 24... h6 {[%clk 0:01:11.1]} 25.
Nf3 {[%clk 0:01:00.2]} 25... Qg3 {[%clk 0:01:02.7]} 26. bxc5 {[%clk 0:00:52.4]}
26... dxc5 {[%clk 0:00:46.8]} 27. Kh1 {[%clk 0:00:38.2]} 27... Rf6 {[%clk
0:00:40.6]} 28. Nxe5 {[%clk 0:00:33.7]} 28... Rxe5 {[%clk 0:00:37.5]} 29. Bf3
{[%clk 0:00:28.7]} 29... f4 {[%clk 0:00:32.4]} 30. Qc3 {[%clk 0:00:15.8]} 30...
fxe3 {[%clk 0:00:12.1]} 31. Rxe3 {[%clk 0:00:16.7]} 31... Rxe3 {[%clk
0:00:11.7]} 32. Qxe3 {[%clk 0:00:17.6]} 32... Qd6 {[%clk 0:00:08.7]} 33. Re1
{[%clk 0:00:14.9]} 33... Kh7 {[%clk 0:00:09]} 34. Qe4+ {[%clk 0:00:14.4]} 34...
Bf5 {[%clk 0:00:08.5]} 35. Qe7 {[%clk 0:00:14.9]} 35... Qg3 {[%clk 0:00:07.8]}
36. Qe3 {[%clk 0:00:13]} 36... Rg6 {[%clk 0:00:05.2]} 37. Be4 {[%clk 0:00:10.9]}
37... Bxe4 {[%clk 0:00:04.5]} 38. Qxg3 {[%clk 0:00:10]} 38... Rxg3 {[%clk
0:00:03.8]} 39. Rxe4 {[%clk 0:00:09.9]} 39... Rxa3 {[%clk 0:00:04.5]} 40. Re7
{[%clk 0:00:06.7]} 40... Rc3 {[%clk 0:00:05]} 41. Rxa7 {[%clk 0:00:06.3]} 41...
Rxc4 {[%clk 0:00:05.4]} 42. Rb7 {[%clk 0:00:06.8]} 42... Rd4 {[%clk 0:00:03.9]}
43. Rxb6 {[%clk 0:00:05.4]} 43... Rxd5 {[%clk 0:00:04.4]} 44. Rc6 {[%clk
0:00:06.3]} 44... h5 {[%clk 0:00:03]} 45. Kh2 {[%clk 0:00:06.7]} 45... g6 {[%clk
0:00:03.5]} 46. Kg3 {[%clk 0:00:07.3]} 46... Kh6 {[%clk 0:00:04.1]} 47. Kf4
{[%clk 0:00:07.7]} 47... Rd4+ {[%clk 0:00:03.5]} 48. Kf3 {[%clk 0:00:07.6]}
48... c4 {[%clk 0:00:02.4]} 49. Rc5 {[%clk 0:00:08]} 49... h4 {[%clk 0:00:02.2]}
50. Kf2 {[%clk 0:00:05.3]} 50... g5 {[%clk 0:00:02.3]} 51. Rc6+ {[%clk
0:00:04.4]} 51... Kh5 {[%clk 0:00:02.6]} 52. Ke2 {[%clk 0:00:05.1]} 52... Re4+
{[%clk 0:00:03]} 53. Kf2 {[%clk 0:00:05.6]} 53... Rf4+ {[%clk 0:00:03.9]} 54.
Ke2 {[%clk 0:00:05]} 54... Rd4 {[%clk 0:00:03.8]} 55. Ke3 {[%clk 0:00:05.3]}
55... Rd3+ {[%clk 0:00:03.9]} 56. Ke2 {[%clk 0:00:05.5]} 56... Rg3 {[%clk
0:00:03.9]} 57. Kf2 {[%clk 0:00:05.5]} 57... Rc3 {[%clk 0:00:04.5]} 58. Ke2
{[%clk 0:00:05.8]} 58... Rc2+ {[%clk 0:00:04.6]} 59. Kf3 {[%clk 0:00:06.4]}
59... Rc1 {[%clk 0:00:05]} 60. Kf2 {[%clk 0:00:06.4]} 60... c3 {[%clk
0:00:05.5]} 61. Ke2 {[%clk 0:00:06.4]} 61... c2 {[%clk 0:00:03.6]} 62. Kf2
{[%clk 0:00:06.7]} 62... g4 {[%clk 0:00:02]} 63. Rc5+ {[%clk 0:00:06.7]} 63...
Kg6 {[%clk 0:00:02.6]} 64. hxg4 {[%clk 0:00:07.6]} 64... h3 {[%clk 0:00:03.2]}
65. Kg3 {[%clk 0:00:05.5]} 65... hxg2 {[%clk 0:00:01.9]} 66. Kxg2 {[%clk
0:00:05.8]} 66... Kg7 {[%clk 0:00:02.6]} 67. g5 {[%clk 0:00:05.9]} 67... Kg6
{[%clk 0:00:03.1]} 68. Kh2 {[%clk 0:00:06.5]} 68... Kg7 {[%clk 0:00:03.2]} 69.
Kg2 {[%clk 0:00:06.9]} 69... Kg6 {[%clk 0:00:03.7]} 70. Kh2 {[%clk 0:00:07.3]}
70... Kg7 {[%clk 0:00:04.3]} 71. Kg2 {[%clk 0:00:07.7]} 1/2-1/2